[Event "Titled Tuesday Blitz August 22 Early 2023"]
[White "Bogaudinov, Rushan"]
[Black "Najdin, Danil"]
[WhiteFideId "4129288"]
[BlackFideId "4172426"]
[WhiteElo "2402"]
[BlackElo "2533"]
[Result "0-1"]
[Round "6"]
[TimeControl "180+1"]
[Date "2023.08.22"]
[WhiteClock "0:01:00"]
[BlackClock "0:01:42"]
[Board "139"]

1. e4 {[%clk 0:02:58]}  e5 {[%clk 0:02:59]} 2. Nc3 {[%clk 0:02:57]}  Nf6 {[%clk 0:02:58]} 3. g3 {[%clk 0:02:56]}  d5 {[%clk 0:02:58]} 4. exd5 {[%clk 0:02:56]}  Nxd5 {[%clk 0:02:59]} 5. Bg2 {[%clk 0:02:56]}  Nxc3 {[%clk 0:02:57]} 6. bxc3 {[%clk 0:02:55]}  c6 {[%clk 0:02:55]} 7. Nf3 {[%clk 0:02:54]}  Bd6 {[%clk 0:02:54]} 8. O-O {[%clk 0:02:54]}  O-O {[%clk 0:02:54]} 9. Re1 {[%clk 0:02:53]}  Bg4 {[%clk 0:02:39]} 10. h3 {[%clk 0:02:51]}  Bh5 {[%clk 0:02:39]} 11. g4 {[%clk 0:02:48]}  Bg6 {[%clk 0:02:36]} 12. Nxe5 {[%clk 0:02:46]}  Nd7 {[%clk 0:02:27]} 13. Nxg6 {[%clk 0:02:40]}  fxg6 {[%clk 0:02:26]} 14. d4 {[%clk 0:02:19]}  Qh4 {[%clk 0:02:18]} 15. Be3 {[%clk 0:02:15]}  Rae8 {[%clk 0:02:13]} 16. Qd2 {[%clk 0:02:11]}  h6 {[%clk 0:02:03]} 17. c4 {[%clk 0:02:03]}  Nf6 {[%clk 0:01:57]} 18. c5 {[%clk 0:01:56]}  Bc7 {[%clk 0:01:52]} 19. Rab1 {[%clk 0:01:52]}  Ne4 {[%clk 0:01:46]} 20. Rxb7 {[%clk 0:01:15]}  Nxd2 {[%clk 0:01:43]} 21. Rxc7 {[%clk 0:01:00]}  Rxe3 {[%clk 0:01:42]} 0-1


[Site "https://www.chess.com"]

[Event "Titled Tuesday Blitz August 22 Early 2023"]
[White "Smiechu"]
[Black "Ismayil, Malak"]
[BlackFideId "13412604"]
[WhiteElo "2398"]
[BlackElo "2528"]
[Result "1-0"]
[Round "6"]
[TimeControl "180+1"]
[Date "2023.08.22"]
[WhiteClock "0:01:35"]
[BlackClock "0:01:14"]
[Board "140"]

1. e4 {[%clk 0:03:00]}  e5 {[%clk 0:02:59]} 2. Nf3 {[%clk 0:03:00]}  Nc6 {[%clk 0:03:00]} 3. d4 {[%clk 0:03:00]}  exd4 {[%clk 0:03:00]} 4. Nxd4 {[%clk 0:03:01]}  Bc5 {[%clk 0:03:00]} 5. Nb3 {[%clk 0:03:00]}  Bb6 {[%clk 0:03:00]} 6. Nc3 {[%clk 0:03:01]}  d6 {[%clk 0:03:01]} 7. Qe2 {[%clk 0:03:01]}  Nf6 {[%clk 0:03:01]} 8. Be3 {[%clk 0:03:02]}  O-O {[%clk 0:03:01]} 9. O-O-O {[%clk 0:03:01]}  Re8 {[%clk 0:03:00]} 10. f3 {[%clk 0:03:01]}  Be6 {[%clk 0:03:00]} 11. g4 {[%clk 0:03:01]}  Ne5 {[%clk 0:02:57]} 12. g5 {[%clk 0:02:46]}  Nfd7 {[%clk 0:02:53]} 13. h4 {[%clk 0:02:43]}  Bc4 {[%clk 0:02:48]} 14. Qf2 {[%clk 0:02:40]}  Bxf1 {[%clk 0:02:46]} 15. Rhxf1 {[%clk 0:02:38]}  Nc4 {[%clk 0:02:47]} 16. Bd4 {[%clk 0:02:30]}  a5 {[%clk 0:02:38]} 17. Nd5 {[%clk 0:02:21]}  Bxd4 {[%clk 0:02:31]} 18. Nxd4 {[%clk 0:02:16]}  a4 {[%clk 0:02:25]} 19. Nf5 {[%clk 0:02:13]}  a3 {[%clk 0:02:19]} 20. b3 {[%clk 0:02:12]}  Nce5 {[%clk 0:02:09]} 21. f4 {[%clk 0:02:06]}  Nc6 {[%clk 0:02:05]} 22. Rg1 {[%clk 0:02:02]}  Rxe4 {[%clk 0:02:03]} 23. Qf3 {[%clk 0:01:52]}  Nc5 {[%clk 0:02:01]} 24. Qc3 {[%clk 0:01:47]}  Ne6 {[%clk 0:01:57]} 25. Nxg7 {[%clk 0:01:36]}  Nxg7 {[%clk 0:01:37]} 26. Nf6+ {[%clk 0:01:36]}  Kh8 {[%clk 0:01:36]} 27. Nxe4 {[%clk 0:01:36]}  Qd7 {[%clk 0:01:14]} 28. h5 {[%clk 0:01:35]} 1-0


[Site "https://www.chess.com"]

[Event "Titled Tuesday Blitz August 22 Early 2023"]
[White "Prudnykova, Olga"]
[Black "ATM622"]
[WhiteFideId "14121093"]
[WhiteElo "2394"]
[BlackElo "2505"]
[Result "0-1"]
[Round "6"]
[TimeControl "180+1"]
[Date "2023.08.22"]
[WhiteClock "0:00:13"]
[BlackClock "0:00:37"]
[Board "142"]

1. e4 {[%clk 0:02:59]}  c6 {[%clk 0:02:59]} 2. d4 {[%clk 0:02:58]}  d5 {[%clk 0:03:00]} 3. exd5 {[%clk 0:02:59]}  cxd5 {[%clk 0:03:00]} 4. c4 {[%clk 0:03:00]}  e6 {[%clk 0:03:00]} 5. Nc3 {[%clk 0:02:59]}  Nf6 {[%clk 0:03:00]} 6. Nf3 {[%clk 0:02:59]}  Nc6 {[%clk 0:03:00]} 7. c5 {[%clk 0:02:57]}  Ne4 {[%clk 0:02:55]} 8. Bd3 {[%clk 0:02:56]}  f5 {[%clk 0:02:52]} 9. O-O {[%clk 0:02:54]}  Be7 {[%clk 0:02:49]} 10. Bb5 {[%clk 0:02:52]}  O-O {[%clk 0:02:49]} 11. Bxc6 {[%clk 0:02:52]}  bxc6 {[%clk 0:02:49]} 12. Bf4 {[%clk 0:02:52]}  g5 {[%clk 0:02:47]} 13. Be5 {[%clk 0:02:51]}  g4 {[%clk 0:02:47]} 14. Ne1 {[%clk 0:02:47]}  Ba6 {[%clk 0:02:45]} 15. Ne2 {[%clk 0:02:43]}  Bf6 {[%clk 0:02:42]} 16. Nd3 {[%clk 0:02:41]}  Bxd3 {[%clk 0:02:40]} 17. Qxd3 {[%clk 0:02:41]}  Bxe5 {[%clk 0:02:39]} 18. dxe5 {[%clk 0:02:40]}  Nxc5 {[%clk 0:02:37]} 19. Qc2 {[%clk 0:02:34]}  Qb6 {[%clk 0:02:29]} 20. Rac1 {[%clk 0:02:33]}  Nd7 {[%clk 0:02:27]} 21. Qxc6 {[%clk 0:02:30]}  Nxe5 {[%clk 0:02:27]} 22. Qc3 {[%clk 0:02:25]}  Qd6 {[%clk 0:02:23]} 23. Rfd1 {[%clk 0:02:21]}  Rac8 {[%clk 0:02:13]} 24. Qa5 {[%clk 0:02:12]}  Qb6 {[%clk 0:01:54]} 25. Qd2 {[%clk 0:01:53]}  Ng6 {[%clk 0:01:41]} 26. b3 {[%clk 0:01:46]}  h5 {[%clk 0:01:37]} 27. Qh6 {[%clk 0:01:42]}  Kf7 {[%clk 0:01:35]} 28. Qxh5 {[%clk 0:01:40]}  Rh8 {[%clk 0:01:34]} 29. Qg5 {[%clk 0:01:39]}  Rxc1 {[%clk 0:01:17]} 30. Rxc1 {[%clk 0:01:37]}  Qd6 {[%clk 0:01:17]} 31. Ng3 {[%clk 0:01:12]}  Qf4 {[%clk 0:01:12]} 32. Qxf4 {[%clk 0:01:08]}  Nxf4 {[%clk 0:01:13]} 33. Rc7+ {[%clk 0:01:08]}  Kf6 {[%clk 0:01:12]} 34. Nf1 {[%clk 0:01:01]}  Ne2+ {[%clk 0:01:09]} 35. Kh1 {[%clk 0:01:01]}  d4 {[%clk 0:01:10]} 36. f3 {[%clk 0:00:53]}  g3 {[%clk 0:01:07]} 37. Rc2 {[%clk 0:00:44]}  d3 {[%clk 0:01:01]} 38. Rd2 {[%clk 0:00:44]}  Rc8 {[%clk 0:01:01]} 39. Rd1 {[%clk 0:00:31]}  gxh2 {[%clk 0:00:57]} 40. Nxh2 {[%clk 0:00:20]}  Ke5 {[%clk 0:00:52]} 41. Nf1 {[%clk 0:00:19]}  Rh8+ {[%clk 0:00:47]} 42. Nh2 {[%clk 0:00:19]}  Kd4 {[%clk 0:00:48]} 43. g4 {[%clk 0:00:18]}  fxg4 {[%clk 0:00:42]} 44. fxg4 {[%clk 0:00:18]}  Kc3 {[%clk 0:00:42]} 45. Kg2 {[%clk 0:00:18]}  Kc2 {[%clk 0:00:42]} 46. Rf1 {[%clk 0:00:17]}  d2 {[%clk 0:00:41]} 47. Nf3 {[%clk 0:00:14]}  d1=Q {[%clk 0:00:40]} 48. Rxd1 {[%clk 0:00:15]}  Kxd1 {[%clk 0:00:41]} 49. Ne5 {[%clk 0:00:14]}  Kd2 {[%clk 0:00:39]} 50. Kf3 {[%clk 0:00:13]}  Rf8+ {[%clk 0:00:37]} 51. Ke4 {[%clk 0:00:13]}  Rf4# {[%clk 0:00:37]} 0-1


[Site "https://www.chess.com"]

[Event "Titled Tuesday Blitz August 22 Early 2023"]
[White "Perez, Maximiliano"]
[Black "Yuruultei Batbaatar"]
[WhiteFideId "117234"]
[BlackFideId "4905962"]
[WhiteElo "2504"]
[BlackElo "2390"]
[Result "1-0"]
[Round "6"]
[TimeControl "180+1"]
[Date "2023.08.22"]
[WhiteClock "0:01:46"]
[BlackClock "0:01:53"]
[Board "144"]

1. d4 {[%clk 0:03:00]}  Nf6 {[%clk 0:02:59]} 2. Bf4 {[%clk 0:02:58]}  g6 {[%clk 0:03:00]} 3. e3 {[%clk 0:02:57]}  Bg7 {[%clk 0:03:00]} 4. Nc3 {[%clk 0:02:47]}  O-O {[%clk 0:03:01]} 5. h4 {[%clk 0:02:47]}  h5 {[%clk 0:03:00]} 6. Nh3 {[%clk 0:02:46]}  c5 {[%clk 0:03:00]} 7. Ng5 {[%clk 0:02:45]}  cxd4 {[%clk 0:02:59]} 8. exd4 {[%clk 0:02:46]}  d6 {[%clk 0:03:00]} 9. Bc4 {[%clk 0:02:46]}  e5 {[%clk 0:02:57]} 10. dxe5 {[%clk 0:02:43]}  dxe5 {[%clk 0:02:58]} 11. Qxd8 {[%clk 0:02:43]}  Rxd8 {[%clk 0:02:58]} 12. Bxf7+ {[%clk 0:02:42]}  Kf8 {[%clk 0:02:53]} 13. Be3 {[%clk 0:02:40]}  Nc6 {[%clk 0:02:49]} 14. Bc5+ {[%clk 0:02:38]}  Ne7 {[%clk 0:02:47]} 15. Bxg6 {[%clk 0:02:30]}  b6 {[%clk 0:02:45]} 16. Bxe7+ {[%clk 0:02:28]}  Kxe7 {[%clk 0:02:45]} 17. O-O {[%clk 0:02:29]}  Be6 {[%clk 0:02:41]} 18. Rad1 {[%clk 0:02:23]}  Bc4 {[%clk 0:02:31]} 19. Rfe1 {[%clk 0:02:22]}  Rxd1 {[%clk 0:02:32]} 20. Rxd1 {[%clk 0:02:22]}  Bh6 {[%clk 0:02:25]} 21. Nge4 {[%clk 0:02:02]}  Rg8 {[%clk 0:02:21]} 22. Bf5 {[%clk 0:02:02]}  Nxe4 {[%clk 0:02:16]} 23. Bxe4 {[%clk 0:01:57]}  Rg4 {[%clk 0:02:12]} 24. Bd5 {[%clk 0:01:51]}  Rxh4 {[%clk 0:02:07]} 25. g3 {[%clk 0:01:48]}  Rg4 {[%clk 0:02:04]} 26. f3 {[%clk 0:01:47]}  Rxg3+ {[%clk 0:02:00]} 27. Kf2 {[%clk 0:01:46]}  Bxd5 {[%clk 0:01:53]} 28. Nxd5+ {[%clk 0:01:46]} 1-0


[Site "https://www.chess.com"]

[Event "Titled Tuesday Blitz August 22 Early 2023"]
[White "Konenkin, Dmitry"]
[Black "arenal72"]
[WhiteFideId "4185781"]
[WhiteElo "2370"]
[BlackElo "2496"]
[Result "0-1"]
[Round "6"]
[TimeControl "180+1"]
[Date "2023.08.22"]
[WhiteClock "0:00:02"]
[BlackClock "0:01:28"]
[Board "150"]

1. d4 {[%clk 0:03:00]}  d6 {[%clk 0:02:54]} 2. e4 {[%clk 0:02:59]}  Nf6 {[%clk 0:02:53]} 3. Nc3 {[%clk 0:02:59]}  g6 {[%clk 0:02:53]} 4. Be2 {[%clk 0:02:59]}  Bg7 {[%clk 0:02:53]} 5. h4 {[%clk 0:02:55]}  h5 {[%clk 0:02:53]} 6. Bg5 {[%clk 0:02:53]}  a6 {[%clk 0:02:48]} 7. a4 {[%clk 0:02:48]}  Nc6 {[%clk 0:02:47]} 8. Nf3 {[%clk 0:02:43]}  O-O {[%clk 0:02:44]} 9. Qd2 {[%clk 0:02:41]}  Bg4 {[%clk 0:02:32]} 10. O-O {[%clk 0:02:21]}  e5 {[%clk 0:02:00]} 11. dxe5 {[%clk 0:01:57]}  dxe5 {[%clk 0:01:59]} 12. Qxd8 {[%clk 0:01:47]}  Raxd8 {[%clk 0:02:00]} 13. Nd5 {[%clk 0:01:46]}  Nxd5 {[%clk 0:01:47]} 14. Bxd8 {[%clk 0:01:45]}  Nf4 {[%clk 0:01:47]} 15. Bxc7 {[%clk 0:00:48]}  Nxe2+ {[%clk 0:01:45]} 16. Kh2 {[%clk 0:00:49]}  Bxf3 {[%clk 0:01:43]} 17. gxf3 {[%clk 0:00:49]}  Ncd4 {[%clk 0:01:44]} 18. Kg2 {[%clk 0:00:35]}  Rc8 {[%clk 0:01:37]} 19. Bb6 {[%clk 0:00:28]}  Nf4+ {[%clk 0:01:34]} 20. Kg3 {[%clk 0:00:28]}  Nde2+ {[%clk 0:01:32]} 21. Kh2 {[%clk 0:00:27]}  Rxc2 {[%clk 0:01:31]} 22. b4 {[%clk 0:00:15]}  Nd4 {[%clk 0:01:30]} 23. Kg3 {[%clk 0:00:11]}  Nfe2+ {[%clk 0:01:29]} 24. Kg2 {[%clk 0:00:10]}  Rc3 {[%clk 0:01:28]} 25. Rfe1 {[%clk 0:00:07]}  Nf4+ {[%clk 0:01:27]} 26. Kg3 {[%clk 0:00:07]}  Rxf3+ {[%clk 0:01:27]} 27. Kh2 {[%clk 0:00:07]}  Rh3+ {[%clk 0:01:27]} 28. Kg1 {[%clk 0:00:02]}  Nf3+ {[%clk 0:01:28]} 0-1


[Site "https://www.chess.com"]

[Event "Titled Tuesday Blitz August 22 Early 2023"]
[White "Itkis, Boris"]
[Black "Kekic, Armin"]
[WhiteFideId "1209167"]
[BlackFideId "14401274"]
[WhiteElo "2481"]
[BlackElo "2362"]
[Result "1-0"]
[Round "6"]
[TimeControl "180+1"]
[Date "2023.08.22"]
[WhiteClock "0:01:38"]
[BlackClock "0:00:06"]
[Board "152"]

1. d4 {[%clk 0:03:00]}  d5 {[%clk 0:02:59]} 2. Nc3 {[%clk 0:03:01]}  Nf6 {[%clk 0:02:56]} 3. Bf4 {[%clk 0:03:01]}  e6 {[%clk 0:02:55]} 4. Nb5 {[%clk 0:03:01]}  Na6 {[%clk 0:02:53]} 5. e3 {[%clk 0:03:01]}  c6 {[%clk 0:02:52]} 6. Nc3 {[%clk 0:03:01]}  Nc7 {[%clk 0:02:39]} 7. Nf3 {[%clk 0:03:00]}  Bd6 {[%clk 0:02:36]} 8. Ne5 {[%clk 0:03:00]}  O-O {[%clk 0:02:35]} 9. Bd3 {[%clk 0:02:59]}  h6 {[%clk 0:02:35]} 10. g4 {[%clk 0:02:58]}  c5 {[%clk 0:02:10]} 11. h4 {[%clk 0:02:56]}  cxd4 {[%clk 0:02:05]} 12. exd4 {[%clk 0:02:57]}  Nd7 {[%clk 0:01:30]} 13. Nxf7 {[%clk 0:02:48]}  Rxf7 {[%clk 0:01:30]} 14. Bxd6 {[%clk 0:02:48]}  Qf6 {[%clk 0:01:10]} 15. Qe2 {[%clk 0:02:40]}  Ne8 {[%clk 0:01:05]} 16. Bg3 {[%clk 0:02:39]}  Nb6 {[%clk 0:01:03]} 17. O-O-O {[%clk 0:02:38]}  Qf3 {[%clk 0:00:54]} 18. Qxf3 {[%clk 0:02:10]}  Rxf3 {[%clk 0:00:54]} 19. g5 {[%clk 0:02:10]}  hxg5 {[%clk 0:00:40]} 20. hxg5 {[%clk 0:02:11]}  Nc4 {[%clk 0:00:32]} 21. Bg6 {[%clk 0:01:52]}  Bd7 {[%clk 0:00:29]} 22. Rh4 {[%clk 0:01:47]}  Kf8 {[%clk 0:00:19]} 23. Rf4+ {[%clk 0:01:40]}  Rxf4 {[%clk 0:00:17]} 24. Bxf4 {[%clk 0:01:41]}  Ned6 {[%clk 0:00:17]} 25. b3 {[%clk 0:01:40]}  Nb5 {[%clk 0:00:06]} 26. Nxb5 {[%clk 0:01:38]} 1-0


[Site "https://www.chess.com"]

[Event "Titled Tuesday Blitz August 22 Early 2023"]
[White "Tsyhanchuk, Stanislav"]
[Black "Ziatdinov, Raset"]
[WhiteFideId "13505130"]
[BlackFideId "2015323"]
[WhiteElo "2480"]
[BlackElo "2360"]
[Result "1/2-1/2"]
[Round "6"]
[TimeControl "180+1"]
[Date "2023.08.22"]
[WhiteClock "0:01:08"]
[BlackClock "0:00:35"]
[Board "153"]

1. e4 {[%clk 0:03:00]}  c5 {[%clk 0:02:53]} 2. Nf3 {[%clk 0:03:00]}  d6 {[%clk 0:02:52]} 3. c4 {[%clk 0:02:56]}  Nf6 {[%clk 0:02:51]} 4. Nc3 {[%clk 0:02:55]}  g6 {[%clk 0:02:50]} 5. d4 {[%clk 0:02:55]}  cxd4 {[%clk 0:02:49]} 6. Nxd4 {[%clk 0:02:56]}  Bg7 {[%clk 0:02:49]} 7. Be2 {[%clk 0:02:55]}  O-O {[%clk 0:02:50]} 8. Be3 {[%clk 0:02:54]}  Nc6 {[%clk 0:02:50]} 9. O-O {[%clk 0:02:54]}  Nxd4 {[%clk 0:02:45]} 10. Bxd4 {[%clk 0:02:54]}  Be6 {[%clk 0:02:45]} 11. b3 {[%clk 0:02:50]}  a6 {[%clk 0:02:36]} 12. f4 {[%clk 0:02:49]}  Qa5 {[%clk 0:02:31]} 13. Nd5 {[%clk 0:02:43]}  Bxd5 {[%clk 0:02:18]} 14. cxd5 {[%clk 0:02:27]}  Nxe4 {[%clk 0:02:13]} 15. Bxg7 {[%clk 0:02:25]}  Kxg7 {[%clk 0:02:14]} 16. Qd4+ {[%clk 0:02:21]}  Nf6 {[%clk 0:02:13]} 17. Bf3 {[%clk 0:02:12]}  Rac8 {[%clk 0:02:08]} 18. Rfe1 {[%clk 0:02:11]}  Rc7 {[%clk 0:01:58]} 19. g4 {[%clk 0:02:03]}  Qc3 {[%clk 0:01:51]} 20. Qxc3 {[%clk 0:01:55]}  Rxc3 {[%clk 0:01:52]} 21. Kf2 {[%clk 0:01:53]}  Rc7 {[%clk 0:01:43]} 22. g5 {[%clk 0:01:52]}  Ng8 {[%clk 0:01:39]} 23. Bg4 {[%clk 0:01:43]}  h5 {[%clk 0:01:32]} 24. Bh3 {[%clk 0:01:41]}  Rc2+ {[%clk 0:01:21]} 25. Kg1 {[%clk 0:01:25]}  Rc3 {[%clk 0:01:19]} 26. Kg2 {[%clk 0:01:12]}  Rc2+ {[%clk 0:01:03]} 27. Kg1 {[%clk 0:01:11]}  Rc3 {[%clk 0:00:54]} 28. Kg2 {[%clk 0:01:08]}  Rc2+ {[%clk 0:00:35]} 29. Kg1 {[%clk 0:01:08]} 1/2-1/2


[Site "https://www.chess.com"]

[Event "Titled Tuesday Blitz August 22 Early 2023"]
[White "Okike, David"]
[Black "Flynn, Jacob"]
[WhiteFideId "8500134"]
[BlackFideId "2509393"]
[WhiteElo "2361"]
[BlackElo "2478"]
[Result "1-0"]
[Round "6"]
[TimeControl "180+1"]
[Date "2023.08.22"]
[WhiteClock "0:01:11"]
[BlackClock "0:00:04"]
[Board "154"]

1. e4 {[%clk 0:03:00]}  e5 {[%clk 0:02:59]} 2. Nf3 {[%clk 0:03:00]}  Nc6 {[%clk 0:03:00]} 3. Bc4 {[%clk 0:03:00]}  Nf6 {[%clk 0:03:00]} 4. d3 {[%clk 0:03:00]}  Bc5 {[%clk 0:03:00]} 5. c3 {[%clk 0:03:01]}  d6 {[%clk 0:03:00]} 6. Bg5 {[%clk 0:03:00]}  h6 {[%clk 0:02:59]} 7. Bh4 {[%clk 0:03:00]}  O-O {[%clk 0:02:59]} 8. O-O {[%clk 0:02:59]}  a6 {[%clk 0:02:59]} 9. a4 {[%clk 0:02:59]}  Ba7 {[%clk 0:02:59]} 10. a5 {[%clk 0:02:59]}  Qe7 {[%clk 0:02:59]} 11. Nbd2 {[%clk 0:02:58]}  g5 {[%clk 0:02:59]} 12. Bg3 {[%clk 0:02:58]}  Nh7 {[%clk 0:02:54]} 13. Qb3 {[%clk 0:02:52]}  Nd8 {[%clk 0:02:48]} 14. d4 {[%clk 0:02:49]}  Nc6 {[%clk 0:02:41]} 15. dxe5 {[%clk 0:02:47]}  dxe5 {[%clk 0:02:33]} 16. Bd5 {[%clk 0:02:47]}  Be6 {[%clk 0:02:12]} 17. Nc4 {[%clk 0:02:43]}  f6 {[%clk 0:02:00]} 18. Ncxe5 {[%clk 0:02:26]}  fxe5 {[%clk 0:02:00]} 19. Bxe6+ {[%clk 0:02:26]}  Kg7 {[%clk 0:02:00]} 20. Bd5 {[%clk 0:02:22]}  Rxf3 {[%clk 0:01:51]} 21. gxf3 {[%clk 0:02:21]}  h5 {[%clk 0:01:49]} 22. Qxb7 {[%clk 0:02:10]}  Rb8 {[%clk 0:01:36]} 23. Qxc6 {[%clk 0:02:10]}  h4 {[%clk 0:01:36]} 24. Qxa6 {[%clk 0:02:07]}  Bc5 {[%clk 0:01:33]} 25. Kg2 {[%clk 0:02:05]}  hxg3 {[%clk 0:01:33]} 26. hxg3 {[%clk 0:02:05]}  Nf6 {[%clk 0:01:31]} 27. b4 {[%clk 0:02:03]}  Bd6 {[%clk 0:01:30]} 28. Rh1 {[%clk 0:01:58]}  Rf8 {[%clk 0:01:17]} 29. Qd3 {[%clk 0:01:47]}  g4 {[%clk 0:01:15]} 30. fxg4 {[%clk 0:01:37]}  Nxg4 {[%clk 0:01:12]} 31. f3 {[%clk 0:01:37]}  Nf6 {[%clk 0:01:04]} 32. Qe3 {[%clk 0:01:37]}  Nxd5 {[%clk 0:00:50]} 33. Qh6+ {[%clk 0:01:36]}  Kf7 {[%clk 0:00:49]} 34. Qh7+ {[%clk 0:01:36]}  Ke8 {[%clk 0:00:46]} 35. Qxe7+ {[%clk 0:01:36]}  Nxe7 {[%clk 0:00:46]} 36. a6 {[%clk 0:01:35]}  Kd7 {[%clk 0:00:43]} 37. a7 {[%clk 0:01:35]}  Ra8 {[%clk 0:00:43]} 38. Rhd1 {[%clk 0:01:30]}  Ke6 {[%clk 0:00:35]} 39. Ra4 {[%clk 0:01:29]}  Nc6 {[%clk 0:00:34]} 40. b5 {[%clk 0:01:29]}  Rxa7 {[%clk 0:00:31]} 41. Rxa7 {[%clk 0:01:28]}  Nxa7 {[%clk 0:00:31]} 42. c4 {[%clk 0:01:29]}  Nc8 {[%clk 0:00:30]} 43. Kf2 {[%clk 0:01:28]}  Nb6 {[%clk 0:00:30]} 44. Rc1 {[%clk 0:01:28]}  Nd7 {[%clk 0:00:25]} 45. Ke3 {[%clk 0:01:27]}  Bc5+ {[%clk 0:00:23]} 46. Kd3 {[%clk 0:01:27]}  Bd4 {[%clk 0:00:23]} 47. Ke2 {[%clk 0:01:25]}  Nc5 {[%clk 0:00:23]} 48. Rh1 {[%clk 0:01:24]}  Na4 {[%clk 0:00:19]} 49. Rh7 {[%clk 0:01:23]}  Kd6 {[%clk 0:00:18]} 50. f4 {[%clk 0:01:24]}  Nb2 {[%clk 0:00:17]} 51. f5 {[%clk 0:01:20]}  Nxc4 {[%clk 0:00:16]} 52. g4 {[%clk 0:01:20]}  Be3 {[%clk 0:00:13]} 53. Kd3 {[%clk 0:01:18]}  Kc5 {[%clk 0:00:04]} 54. Rxc7+ {[%clk 0:01:15]}  Kxb5 {[%clk 0:00:05]} 55. Rxc4 {[%clk 0:01:15]}  Bf4 {[%clk 0:00:06]} 56. Rc8 {[%clk 0:01:14]}  Bg5 {[%clk 0:00:05]} 57. Kc3 {[%clk 0:01:12]}  Bf6 {[%clk 0:00:05]} 58. Re8 {[%clk 0:01:11]}  Kc6 {[%clk 0:00:04]} 59. Re6+ {[%clk 0:01:11]} 1-0


[Site "https://www.chess.com"]

[Event "Titled Tuesday Blitz August 22 Early 2023"]
[White "Skaric, Djuro"]
[Black "Fernandez Lopez, Ruben"]
[WhiteFideId "934569"]
[BlackFideId "24518298"]
[WhiteElo "2326"]
[BlackElo "2471"]
[Result "1-0"]
[Round "6"]
[TimeControl "180+1"]
[Date "2023.08.22"]
[WhiteClock "0:01:17"]
[BlackClock "0:02:22"]
[Board "160"]

1. g3 {[%clk 0:03:00]}  e6 {[%clk 0:02:59]} 2. Bg2 {[%clk 0:03:01]}  h5 {[%clk 0:02:59]} 3. Nf3 {[%clk 0:02:59]}  Nc6 {[%clk 0:02:58]} 4. d4 {[%clk 0:02:59]}  Be7 {[%clk 0:02:56]} 5. c4 {[%clk 0:03:00]}  h4 {[%clk 0:02:57]} 6. Nc3 {[%clk 0:02:59]}  hxg3 {[%clk 0:02:57]} 7. fxg3 {[%clk 0:02:59]}  Nf6 {[%clk 0:02:56]} 8. e4 {[%clk 0:02:59]}  d5 {[%clk 0:02:57]} 9. e5 {[%clk 0:02:59]}  Ne4 {[%clk 0:02:57]} 10. cxd5 {[%clk 0:02:58]}  exd5 {[%clk 0:02:57]} 11. Be3 {[%clk 0:02:34]}  Bg4 {[%clk 0:02:57]} 12. Qa4 {[%clk 0:02:32]}  Qd7 {[%clk 0:02:56]} 13. Nxe4 {[%clk 0:02:08]}  dxe4 {[%clk 0:02:57]} 14. Nd2 {[%clk 0:02:08]}  Bb4 {[%clk 0:02:48]} 15. O-O {[%clk 0:02:04]}  Bxd2 {[%clk 0:02:47]} 16. Bxd2 {[%clk 0:02:03]}  Qxd4+ {[%clk 0:02:48]} 17. Qxd4 {[%clk 0:02:03]}  Nxd4 {[%clk 0:02:49]} 18. Bxe4 {[%clk 0:02:03]}  O-O-O {[%clk 0:02:48]} 19. Rxf7 {[%clk 0:01:57]}  Ne2+ {[%clk 0:02:47]} 20. Kf2 {[%clk 0:01:55]}  Rxd2 {[%clk 0:02:47]} 21. Ke3 {[%clk 0:01:52]}  Rxb2 {[%clk 0:02:47]} 22. Rxg7 {[%clk 0:01:51]}  Be6 {[%clk 0:02:41]} 23. h4 {[%clk 0:01:50]}  Nc3 {[%clk 0:02:39]} 24. Re7 {[%clk 0:01:41]}  Bg4 {[%clk 0:02:33]} 25. Kf4 {[%clk 0:01:39]}  Rf8+ {[%clk 0:02:28]} 26. Kxg4 {[%clk 0:01:38]}  Nxe4 {[%clk 0:02:28]} 27. Rg7 {[%clk 0:01:36]}  Rg2 {[%clk 0:02:26]} 28. Kh3 {[%clk 0:01:35]}  Rff2 {[%clk 0:02:26]} 29. Rh1 {[%clk 0:01:22]}  Rxa2 {[%clk 0:02:25]} 30. e6 {[%clk 0:01:21]}  Rge2 {[%clk 0:02:22]} 31. Rg8# {[%clk 0:01:17]} 1-0


[Site "https://www.chess.com"]

[Event "Titled Tuesday Blitz August 22 Early 2023"]
[White "Melnichuk, Mikhail"]
[Black "Osinovsky, Stepan"]
[WhiteFideId "14117533"]
[BlackFideId "4157354"]
[WhiteElo "2465"]
[BlackElo "2311"]
[Result "0-1"]
[Round "6"]
[TimeControl "180+1"]
[Date "2023.08.22"]
[WhiteClock "0:00:08"]
[BlackClock "0:00:16"]
[Board "162"]

1. e4 {[%clk 0:02:55]}  e5 {[%clk 0:02:56]} 2. Nf3 {[%clk 0:02:55]}  Nc6 {[%clk 0:02:57]} 3. Bc4 {[%clk 0:02:51]}  Nf6 {[%clk 0:02:56]} 4. Ng5 {[%clk 0:02:46]}  d5 {[%clk 0:02:57]} 5. exd5 {[%clk 0:02:47]}  Na5 {[%clk 0:02:57]} 6. Bb5+ {[%clk 0:02:47]}  c6 {[%clk 0:02:58]} 7. dxc6 {[%clk 0:02:47]}  bxc6 {[%clk 0:02:59]} 8. Bd3 {[%clk 0:02:44]}  Nd5 {[%clk 0:02:44]} 9. Nf3 {[%clk 0:02:33]}  Bd6 {[%clk 0:02:42]} 10. O-O {[%clk 0:02:25]}  f5 {[%clk 0:02:27]} 11. Be2 {[%clk 0:02:10]}  e4 {[%clk 0:01:53]} 12. Nd4 {[%clk 0:01:58]}  Qf6 {[%clk 0:01:43]} 13. Nb3 {[%clk 0:01:54]}  Nxb3 {[%clk 0:01:41]} 14. axb3 {[%clk 0:01:55]}  h5 {[%clk 0:01:03]} 15. Nc3 {[%clk 0:01:48]}  Qe5 {[%clk 0:00:34]} 16. g3 {[%clk 0:01:48]}  h4 {[%clk 0:00:34]} 17. d4 {[%clk 0:01:37]}  Qf6 {[%clk 0:00:20]} 18. Nxd5 {[%clk 0:01:33]}  cxd5 {[%clk 0:00:21]} 19. Be3 {[%clk 0:01:26]}  g5 {[%clk 0:00:17]} 20. Bh5+ {[%clk 0:00:25]}  Ke7 {[%clk 0:00:16]} 21. gxh4 {[%clk 0:00:23]}  f4 {[%clk 0:00:16]} 22. Bd2 {[%clk 0:00:19]}  g4 {[%clk 0:00:16]} 23. Bxg4 {[%clk 0:00:13]}  Bxg4 {[%clk 0:00:16]} 24. Qe1 {[%clk 0:00:08]}  Bf3 {[%clk 0:00:16]} 0-1


[Site "https://www.chess.com"]